[Event "*** SCC Grand Prix: Titled Tuesday Blitz"]
[Site "Chess.com"]
[Date "2020.09.29"]
[Round "8"]
[White "salomez"]
[Black "KacperPolOK"]
[Result "0-1"]
[WhiteElo "2243"]
[BlackElo "2387"]
[TimeControl "180+1"]
[EndTime "11:32:36 PDT"]
[Termination "KacperPolOK won on time"]

1. e4 {[%clk 0:03:00.9]} 1... c5 {[%clk 0:02:59.3]} 2. Nf3 {[%clk 0:02:55.2]}
2... Nc6 {[%clk 0:02:58.9]} 3. Bb5 {[%clk 0:02:52.9]} 3... d6 {[%clk 0:02:57.6]}
4. c3 {[%clk 0:02:50.9]} 4... Nf6 {[%clk 0:02:51.1]} 5. e5 {[%clk 0:02:45.6]}
5... dxe5 {[%clk 0:02:48]} 6. Nxe5 {[%clk 0:02:40.2]} 6... Bd7 {[%clk
0:02:48.1]} 7. Nxd7 {[%clk 0:02:39.4]} 7... Qxd7 {[%clk 0:02:47.6]} 8. O-O
{[%clk 0:02:39]} 8... a6 {[%clk 0:02:46.9]} 9. Bxc6 {[%clk 0:02:34]} 9... Qxc6
{[%clk 0:02:46.4]} 10. d4 {[%clk 0:02:34.9]} 10... e6 {[%clk 0:02:45.8]} 11.
dxc5 {[%clk 0:02:25.1]} 11... Bxc5 {[%clk 0:02:45.2]} 12. Bg5 {[%clk 0:02:25.1]}
12... Rd8 {[%clk 0:02:45.2]} 13. Qe2 {[%clk 0:02:24.2]} 13... O-O {[%clk
0:02:39.8]} 14. Bxf6 {[%clk 0:02:23.5]} 14... gxf6 {[%clk 0:02:40]} 15. Nd2
{[%clk 0:02:24.1]} 15... Kh8 {[%clk 0:02:38.6]} 16. Ne4 {[%clk 0:02:23.2]} 16...
Be7 {[%clk 0:02:35]} 17. Rad1 {[%clk 0:02:21.8]} 17... f5 {[%clk 0:02:33.7]} 18.
Ng3 {[%clk 0:02:19.9]} 18... Bd6 {[%clk 0:02:03.2]} 19. Nh5 {[%clk 0:02:15.1]}
19... Rg8 {[%clk 0:02:00.8]} 20. f3 {[%clk 0:02:05]} 20... Bc7 {[%clk
0:01:43.8]} 21. Kh1 {[%clk 0:01:11.3]} 21... e5 {[%clk 0:01:34.6]} 22. f4 {[%clk
0:00:37]} 22... e4 {[%clk 0:01:33]} 23. Rxd8 {[%clk 0:00:25.1]} 23... Rxd8
{[%clk 0:01:20.6]} 24. Ng3 {[%clk 0:00:26]} 24... Qd5 {[%clk 0:01:18.9]} 25. Qh5
{[%clk 0:00:24.7]} 25... e3 {[%clk 0:01:12.5]} 26. Qe2 {[%clk 0:00:07]} 26...
Qd2 {[%clk 0:01:09.9]} 27. Re1 {[%clk 0:00:05.7]} 27... Qxe2 {[%clk 0:01:08.9]}
28. Nxe2 {[%clk 0:00:05.3]} 28... Rd2 {[%clk 0:01:09.4]} 29. Nd4 {[%clk
0:00:04.6]} 29... Rxb2 {[%clk 0:01:08.6]} 30. Nxf5 {[%clk 0:00:04.3]} 30... Bxf4
{[%clk 0:01:08.5]} 31. g3 {[%clk 0:00:04.5]} 31... Bg5 {[%clk 0:00:58]} 32. Nxe3
{[%clk 0:00:04.6]} 32... Bxe3 {[%clk 0:00:57.7]} 33. Rxe3 {[%clk 0:00:04.5]}
33... b5 {[%clk 0:00:50.7]} 34. Re7 {[%clk 0:00:04.2]} 34... Kg7 {[%clk
0:00:50.9]} 35. a3 {[%clk 0:00:02.8]} 35... Rb3 {[%clk 0:00:46.9]} 36. Rb7
{[%clk 0:00:00.5]} 36... Rxa3 {[%clk 0:00:42.4]} 0-1

[Event "*** SCC Grand Prix: Titled Tuesday Blitz"]
[Site "Chess.com"]
[Date "2020.09.29"]
[Round "8"]
[White "Supernotar"]
[Black "stanyga"]
[Result "0-1"]
[WhiteElo "2776"]
[BlackElo "2626"]
[TimeControl "180+1"]
[EndTime "11:32:37 PDT"]
[Termination "stanyga won by resignation"]

1. d4 {[%clk 0:03:00.9]} 1... d5 {[%clk 0:02:58.6]} 2. c4 {[%clk 0:03:00.9]}
2... c6 {[%clk 0:02:58.5]} 3. e3 {[%clk 0:03:01.2]} 3... Nf6 {[%clk 0:02:57.9]}
4. Bd3 {[%clk 0:03:01.4]} 4... e6 {[%clk 0:02:54.2]} 5. Nd2 {[%clk 0:03:00.2]}
5... Nbd7 {[%clk 0:02:53.6]} 6. Ngf3 {[%clk 0:03:00.2]} 6... Bd6 {[%clk
0:02:50.8]} 7. O-O {[%clk 0:03:00.2]} 7... b6 {[%clk 0:02:49.5]} 8. Qe2 {[%clk
0:02:55.9]} 8... Bb7 {[%clk 0:02:48.5]} 9. e4 {[%clk 0:02:55.6]} 9... dxe4
{[%clk 0:02:48.2]} 10. Nxe4 {[%clk 0:02:55.7]} 10... Be7 {[%clk 0:02:35.1]} 11.
b3 {[%clk 0:02:54.4]} 11... c5 {[%clk 0:02:31]} 12. Bb2 {[%clk 0:02:54]} 12...
cxd4 {[%clk 0:02:24.6]} 13. Nxd4 {[%clk 0:02:54]} 13... O-O {[%clk 0:02:09.5]}
14. Rad1 {[%clk 0:02:53.2]} 14... a6 {[%clk 0:01:31.6]} 15. Ng5 {[%clk
0:02:49.8]} 15... Nc5 {[%clk 0:01:18.2]} 16. Bb1 {[%clk 0:02:36.5]} 16... Qc7
{[%clk 0:01:06.2]} 17. Ba1 {[%clk 0:02:06.5]} 17... h6 {[%clk 0:01:03.3]} 18.
Ngf3 {[%clk 0:02:01.5]} 18... Rad8 {[%clk 0:01:01.3]} 19. Ne5 {[%clk 0:02:01]}
19... Bd6 {[%clk 0:00:58.2]} 20. f4 {[%clk 0:02:00]} 20... Nce4 {[%clk
0:00:57.2]} 21. Kh1 {[%clk 0:01:46.7]} 21... Bxe5 {[%clk 0:00:53.4]} 22. fxe5
{[%clk 0:01:46]} 22... Qxe5 {[%clk 0:00:52.7]} 23. Rfe1 {[%clk 0:01:25.9]} 23...
Qc5 {[%clk 0:00:38.3]} 24. Rf1 {[%clk 0:01:11.9]} 24... e5 {[%clk 0:00:34.8]}
25. b4 {[%clk 0:00:57.3]} 25... Qxb4 {[%clk 0:00:30.9]} 26. Nf5 {[%clk
0:00:57.4]} 26... Rxd1 {[%clk 0:00:30.4]} 27. Rxd1 {[%clk 0:00:51.7]} 27... Qc5
{[%clk 0:00:20.5]} 28. Rf1 {[%clk 0:00:47]} 28... Rd8 {[%clk 0:00:20.3]} 29. Bd3
{[%clk 0:00:40.4]} 29... Rxd3 {[%clk 0:00:19.2]} 30. Qxd3 {[%clk 0:00:40.5]}
30... Nf2+ {[%clk 0:00:19.7]} 31. Rxf2 {[%clk 0:00:38.3]} 31... Qxf2 {[%clk
0:00:20.6]} 32. Ne3 {[%clk 0:00:20.5]} 32... Qe1+ {[%clk 0:00:20.2]} 33. Nf1
{[%clk 0:00:19.7]} 33... Qxa1 {[%clk 0:00:20.3]} 34. Kg1 {[%clk 0:00:19.3]}
34... Qd4+ {[%clk 0:00:18.9]} 35. Qxd4 {[%clk 0:00:19.5]} 35... exd4 {[%clk
0:00:19.8]} 0-1

[Event "*** SCC Grand Prix: Titled Tuesday Blitz"]
[Site "Chess.com"]
[Date "2020.09.29"]
[Round "8"]
[White "Margarita2907"]
[Black "ljuks68"]
[Result "1-0"]
[WhiteElo "2203"]
[BlackElo "2329"]
[TimeControl "180+1"]
[EndTime "11:32:37 PDT"]
[Termination "Margarita2907 won by resignation"]

1. e4 {[%clk 0:03:00.9]} 1... e6 {[%clk 0:02:59.6]} 2. d4 {[%clk 0:03:00.3]}
2... d5 {[%clk 0:03:00]} 3. Nd2 {[%clk 0:02:58.9]} 3... Nf6 {[%clk 0:02:59.2]}
4. e5 {[%clk 0:02:58]} 4... Nfd7 {[%clk 0:02:59.6]} 5. Bd3 {[%clk 0:02:55.7]}
5... c5 {[%clk 0:02:59.9]} 6. c3 {[%clk 0:02:54.7]} 6... Nc6 {[%clk 0:03:00.1]}
7. Ne2 {[%clk 0:02:54.1]} 7... cxd4 {[%clk 0:02:59.9]} 8. cxd4 {[%clk
0:02:53.7]} 8... f6 {[%clk 0:03:00.8]} 9. exf6 {[%clk 0:02:52.7]} 9... Qxf6
{[%clk 0:03:00.7]} 10. Nf3 {[%clk 0:02:50.6]} 10... h6 {[%clk 0:03:01.1]} 11.
O-O {[%clk 0:02:49.8]} 11... Bd6 {[%clk 0:03:01.5]} 12. Be3 {[%clk 0:02:40.8]}
12... O-O {[%clk 0:03:01.2]} 13. a3 {[%clk 0:02:36.2]} 13... Rd8 {[%clk
0:03:00.6]} 14. Bc2 {[%clk 0:02:31.5]} 14... Nf8 {[%clk 0:02:59.1]} 15. Qd3
{[%clk 0:02:29.4]} 15... Bd7 {[%clk 0:02:59.2]} 16. Ng3 {[%clk 0:02:26.6]} 16...
Be8 {[%clk 0:02:58.7]} 17. b4 {[%clk 0:02:17.6]} 17... a6 {[%clk 0:02:57.6]} 18.
Rfe1 {[%clk 0:02:15.3]} 18... Rac8 {[%clk 0:02:56.5]} 19. Rac1 {[%clk
0:02:13.8]} 19... g5 {[%clk 0:02:34.6]} 20. Nd2 {[%clk 0:02:00.8]} 20... h5
{[%clk 0:02:19]} 21. Nf3 {[%clk 0:01:50.8]} 21... Bf4 {[%clk 0:02:02.3]} 22.
Bxf4 {[%clk 0:01:48.5]} 22... Qxf4 {[%clk 0:02:01.5]} 23. Rcd1 {[%clk
0:01:35.6]} 23... g4 {[%clk 0:01:55.7]} 24. Ne5 {[%clk 0:01:32.9]} 24... Nxd4
{[%clk 0:01:46.1]} 25. Bb1 {[%clk 0:01:17.7]} 25... Nc6 {[%clk 0:01:34.8]} 26.
Nxc6 {[%clk 0:01:07.8]} 26... Rxc6 {[%clk 0:01:34]} 27. Ne2 {[%clk 0:01:04]}
27... Qf6 {[%clk 0:01:30.3]} 28. Nd4 {[%clk 0:01:03.4]} 28... Rc7 {[%clk
0:01:19.1]} 29. Qe3 {[%clk 0:00:52.4]} 29... Bf7 {[%clk 0:00:50.5]} 30. h3
{[%clk 0:00:40]} 30... Re8 {[%clk 0:00:43.5]} 31. hxg4 {[%clk 0:00:39.1]} 31...
hxg4 {[%clk 0:00:43.1]} 32. Qg3 {[%clk 0:00:38.8]} 32... Qg7 {[%clk 0:00:34.2]}
33. Qxc7 {[%clk 0:00:37.5]} 33... e5 {[%clk 0:00:21.7]} 34. Nf5 {[%clk
0:00:36.8]} 34... Qg5 {[%clk 0:00:20.7]} 35. Nd6 {[%clk 0:00:34.8]} 35... Re7
{[%clk 0:00:19.9]} 36. Nxf7 {[%clk 0:00:30.5]} 36... Rxf7 {[%clk 0:00:18.7]} 37.
Qxe5 {[%clk 0:00:29.9]} 1-0

[Event "*** SCC Grand Prix: Titled Tuesday Blitz"]
[Site "Chess.com"]
[Date "2020.09.29"]
[Round "8"]
[White "Zhigalko_Sergei"]
[Black "lachesisQ"]
[Result "0-1"]
[WhiteElo "2959"]
[BlackElo "3118"]
[TimeControl "180+1"]
[EndTime "11:32:39 PDT"]
[Termination "lachesisQ won by resignation"]

1. e4 {[%clk 0:03:00.9]} 1... b6 {[%clk 0:02:58.6]} 2. d4 {[%clk 0:03:01.1]}
2... Bb7 {[%clk 0:02:58.1]} 3. Bd3 {[%clk 0:03:01.8]} 3... e6 {[%clk 0:02:58.1]}
4. Nf3 {[%clk 0:03:02.4]} 4... Nf6 {[%clk 0:02:58.3]} 5. Qe2 {[%clk 0:03:02.4]}
5... d5 {[%clk 0:02:58.2]} 6. e5 {[%clk 0:03:00.7]} 6... Nfd7 {[%clk 0:02:54]}
7. O-O {[%clk 0:03:00.3]} 7... c5 {[%clk 0:02:54.4]} 8. c3 {[%clk 0:03:00.6]}
8... Nc6 {[%clk 0:02:55.1]} 9. Be3 {[%clk 0:02:46]} 9... Be7 {[%clk 0:02:54.9]}
10. Nbd2 {[%clk 0:02:45.4]} 10... g5 {[%clk 0:02:54.8]} 11. Ne1 {[%clk
0:02:32.9]} 11... Qc7 {[%clk 0:02:46.3]} 12. Qh5 {[%clk 0:02:18.1]} 12... O-O-O
{[%clk 0:02:35.4]} 13. Qxf7 {[%clk 0:02:14.1]} 13... Kb8 {[%clk 0:02:35]} 14.
Qxe6 {[%clk 0:02:02.4]} 14... h5 {[%clk 0:02:33.2]} 15. Bb5 {[%clk 0:01:49.9]}
15... Nf8 {[%clk 0:02:23.5]} 16. Qf5 {[%clk 0:01:49.2]} 16... Bc8 {[%clk
0:02:19.6]} 17. Qc2 {[%clk 0:01:39.7]} 17... Ne6 {[%clk 0:02:19.1]} 18. Qa4
{[%clk 0:01:20.4]} 18... Nxe5 {[%clk 0:02:05.5]} 19. dxe5 {[%clk 0:01:18.4]}
19... d4 {[%clk 0:02:05.8]} 20. cxd4 {[%clk 0:01:11.6]} 20... cxd4 {[%clk
0:02:05.6]} 21. Nc4 {[%clk 0:01:03.5]} 21... dxe3 {[%clk 0:02:02]} 22. Nxe3
{[%clk 0:01:03.8]} 22... a6 {[%clk 0:01:43.3]} 23. Be2 {[%clk 0:00:50.1]} 23...
b5 {[%clk 0:01:43.2]} 24. Qc2 {[%clk 0:00:48]} 24... Qxe5 {[%clk 0:01:40.1]} 25.
Nf3 {[%clk 0:00:44.2]} 25... Qf6 {[%clk 0:01:29.8]} 26. Rfd1 {[%clk 0:00:25.1]}
26... g4 {[%clk 0:01:25]} 27. Nd5 {[%clk 0:00:15.7]} 27... Rxd5 {[%clk
0:01:22.4]} 28. Rxd5 {[%clk 0:00:16.4]} 28... Nf4 {[%clk 0:01:22.2]} 29. Rd2
{[%clk 0:00:05.2]} 29... Nxe2+ {[%clk 0:01:12.7]} 30. Rxe2 {[%clk 0:00:05.9]}
30... gxf3 {[%clk 0:01:13.4]} 31. Re3 {[%clk 0:00:06.6]} 31... fxg2 {[%clk
0:01:07.7]} 32. Rae1 {[%clk 0:00:07]} 32... Bd6 {[%clk 0:01:07.6]} 33. Re8
{[%clk 0:00:07.2]} 33... Rxe8 {[%clk 0:01:01.9]} 34. Rxe8 {[%clk 0:00:08.1]}
34... Bc7 {[%clk 0:01:02.2]} 35. Qe4 {[%clk 0:00:03.5]} 35... Qg5 {[%clk
0:00:54.8]} 36. Qxg2 {[%clk 0:00:02.7]} 36... Qc1+ {[%clk 0:00:54.5]} 37. Qf1
{[%clk 0:00:03]} 37... Bxh2+ {[%clk 0:00:54.7]} 38. Kg2 {[%clk 0:00:03.4]} 38...
Qc6+ {[%clk 0:00:55.4]} 39. Kxh2 {[%clk 0:00:03.7]} 39... Qxe8 {[%clk
0:00:55.4]} 40. Qd3 {[%clk 0:00:04.4]} 40... Qe5+ {[%clk 0:00:54.8]} 41. Qg3
{[%clk 0:00:04.7]} 41... Qxg3+ {[%clk 0:00:54.3]} 42. Kxg3 {[%clk 0:00:05.5]}
42... Kc7 {[%clk 0:00:53.8]} 43. Kh4 {[%clk 0:00:05.4]} 43... Bg4 {[%clk
0:00:53.7]} 44. a3 {[%clk 0:00:05.5]} 44... Kd6 {[%clk 0:00:53.8]} 0-1

[Event "*** SCC Grand Prix: Titled Tuesday Blitz"]
[Site "Chess.com"]
[Date "2020.09.29"]
[Round "8"]
[White "aNaartjieZA"]
[Black "profofchess"]
[Result "1-0"]
[WhiteElo "2511"]
[BlackElo "2363"]
[TimeControl "180+1"]
[EndTime "11:32:41 PDT"]
[Termination "aNaartjieZA won on time"]

1. e4 {[%clk 0:03:00.9]} 1... e6 {[%clk 0:03:00.2]} 2. d3 {[%clk 0:03:00.6]}
2... d5 {[%clk 0:03:01.1]} 3. Nd2 {[%clk 0:03:00.5]} 3... c5 {[%clk 0:02:58.9]}
4. Ngf3 {[%clk 0:03:00.4]} 4... Nc6 {[%clk 0:02:59.3]} 5. g3 {[%clk 0:03:00.4]}
5... Nf6 {[%clk 0:02:59.6]} 6. Bg2 {[%clk 0:03:00.4]} 6... Be7 {[%clk
0:02:58.5]} 7. O-O {[%clk 0:03:00.5]} 7... O-O {[%clk 0:02:58.5]} 8. Re1 {[%clk
0:03:00.5]} 8... Rb8 {[%clk 0:02:56.8]} 9. e5 {[%clk 0:02:57.8]} 9... Nd7 {[%clk
0:02:56.4]} 10. Nf1 {[%clk 0:02:57]} 10... f6 {[%clk 0:02:37.8]} 11. exf6 {[%clk
0:02:56]} 11... Nxf6 {[%clk 0:02:38]} 12. c3 {[%clk 0:02:55]} 12... Bd6 {[%clk
0:02:26.7]} 13. Ng5 {[%clk 0:02:44]} 13... Re8 {[%clk 0:01:54.9]} 14. c4 {[%clk
0:02:42]} 14... d4 {[%clk 0:01:35.2]} 15. Ne4 {[%clk 0:02:34]} 15... Bf8 {[%clk
0:01:31.3]} 16. Bg5 {[%clk 0:02:28.4]} 16... e5 {[%clk 0:01:28]} 17. Nfd2 {[%clk
0:02:08.9]} 17... Bf5 {[%clk 0:01:24.1]} 18. Qf3 {[%clk 0:01:58.3]} 18... Bxe4
{[%clk 0:01:00.3]} 19. Nxe4 {[%clk 0:01:56.8]} 19... Be7 {[%clk 0:01:00.2]} 20.
Bxf6 {[%clk 0:01:54.8]} 20... gxf6 {[%clk 0:00:58.6]} 21. Qh5 {[%clk 0:01:46.7]}
21... Kh8 {[%clk 0:00:55.5]} 22. Bh3 {[%clk 0:01:46.1]} 22... Rg8 {[%clk
0:00:51.9]} 23. Bf5 {[%clk 0:01:45.6]} 23... Rg7 {[%clk 0:00:52.1]} 24. a3
{[%clk 0:01:43.8]} 24... b5 {[%clk 0:00:50.5]} 25. b3 {[%clk 0:01:41.6]} 25...
bxc4 {[%clk 0:00:28.2]} 26. bxc4 {[%clk 0:01:41.1]} 26... Rb3 {[%clk 0:00:28.2]}
27. Nd2 {[%clk 0:01:36.4]} 27... Rb2 {[%clk 0:00:26]} 28. Nf3 {[%clk 0:01:35.9]}
28... Rb3 {[%clk 0:00:11.8]} 29. Be4 {[%clk 0:01:34.2]} 29... Na5 {[%clk
0:00:09.5]} 30. Nh4 {[%clk 0:01:32.6]} 30... Bf8 {[%clk 0:00:05]} 31. Ng6+
{[%clk 0:01:26.8]} 31... Kg8 {[%clk 0:00:04.3]} 32. Bd5+ {[%clk 0:01:26.4]}
32... Rf7 {[%clk 0:00:03.3]} 33. Bxf7+ {[%clk 0:01:26.1]} 33... Kxf7 {[%clk
0:00:03.5]} 34. Qxh7+ {[%clk 0:01:25.7]} 34... Bg7 {[%clk 0:00:03.4]} 35. Nh4
{[%clk 0:01:21.9]} 35... Qg8 {[%clk 0:00:02.7]} 36. Qg6+ {[%clk 0:01:21.1]}
36... Ke7 {[%clk 0:00:03]} 37. Nf5+ {[%clk 0:01:20.7]} 37... Kf8 {[%clk
0:00:03.5]} 38. Rab1 {[%clk 0:01:19.4]} 38... Bh8 {[%clk 0:00:02.9]} 39. Qh6+
{[%clk 0:01:17.7]} 39... Bg7 {[%clk 0:00:02.7]} 40. Nxg7 {[%clk 0:01:17.2]}
40... Qxg7 {[%clk 0:00:02.9]} 41. Qxg7+ {[%clk 0:01:16.9]} 41... Kxg7 {[%clk
0:00:03.8]} 42. Rxb3 {[%clk 0:01:16.8]} 42... Nxb3 {[%clk 0:00:04.6]} 43. Rb1
{[%clk 0:01:16.7]} 43... Nd2 {[%clk 0:00:03.8]} 44. Rb7+ {[%clk 0:01:16.3]}
44... Kg6 {[%clk 0:00:03.6]} 45. Rxa7 {[%clk 0:01:16.1]} 45... e4 {[%clk
0:00:04.1]} 46. dxe4 {[%clk 0:01:15.1]} 46... d3 {[%clk 0:00:03.1]} 47. Rd7
{[%clk 0:01:14.5]} 47... Nf3+ {[%clk 0:00:03.1]} 48. Kg2 {[%clk 0:01:12.8]}
48... Nd4 {[%clk 0:00:01.5]} 49. Rxd4 {[%clk 0:01:07.3]} 49... cxd4 {[%clk
0:00:01.3]} 50. Kf1 {[%clk 0:01:07.4]} 1-0

[Event "*** SCC Grand Prix: Titled Tuesday Blitz"]
[Site "Chess.com"]
[Date "2020.09.29"]
[Round "8"]
[White "abykhovsky"]
[Black "FMJoseHerrera"]
[Result "1-0"]
[WhiteElo "2736"]
[BlackElo "2553"]
[TimeControl "180+1"]
[EndTime "11:32:42 PDT"]
[Termination "abykhovsky won by resignation"]

1. d4 {[%clk 0:03:00.9]} 1... Nf6 {[%clk 0:02:58.3]} 2. Nf3 {[%clk 0:02:52.1]}
2... c5 {[%clk 0:02:57.7]} 3. c4 {[%clk 0:02:53]} 3... g6 {[%clk 0:02:57.3]} 4.
d5 {[%clk 0:02:52.8]} 4... b5 {[%clk 0:02:57]} 5. cxb5 {[%clk 0:02:52.9]} 5...
a6 {[%clk 0:02:56.7]} 6. b6 {[%clk 0:02:52.9]} 6... Bg7 {[%clk 0:02:56.4]} 7.
Nc3 {[%clk 0:02:53.8]} 7... O-O {[%clk 0:02:55.9]} 8. e4 {[%clk 0:02:53.8]} 8...
d6 {[%clk 0:02:56.1]} 9. Qb3 {[%clk 0:02:51.3]} 9... Bb7 {[%clk 0:02:53.7]} 10.
a4 {[%clk 0:02:35.7]} 10... a5 {[%clk 0:02:53.9]} 11. Nd2 {[%clk 0:02:35.7]}
11... Nfd7 {[%clk 0:02:48.6]} 12. Nc4 {[%clk 0:02:34.8]} 12... Na6 {[%clk
0:02:47.9]} 13. Nxa5 {[%clk 0:02:28.9]} 13... c4 {[%clk 0:02:25.8]} 14. Qb5
{[%clk 0:01:05.6]} 14... Nac5 {[%clk 0:01:28.9]} 15. Nxb7 {[%clk 0:00:59.5]}
15... Nxb7 {[%clk 0:01:28.3]} 16. Be3 {[%clk 0:00:59.2]} 16... Ra5 {[%clk
0:01:22.9]} 17. Qb4 {[%clk 0:00:47.2]} 17... Qa8 {[%clk 0:01:14.7]} 18. Bxc4
{[%clk 0:00:43.7]} 18... Rc8 {[%clk 0:01:14.5]} 19. O-O {[%clk 0:00:42.5]} 19...
Ndc5 {[%clk 0:01:08.6]} 20. Bb5 {[%clk 0:00:30.8]} 20... Na6 {[%clk 0:00:45.8]}
21. Qa3 {[%clk 0:00:22.3]} 21... Nb8 {[%clk 0:00:43.8]} 22. Rfc1 {[%clk
0:00:17.5]} 22... h6 {[%clk 0:00:42.5]} 23. h3 {[%clk 0:00:17.6]} 23... Kh7
{[%clk 0:00:42.5]} 24. b4 {[%clk 0:00:17.8]} 24... Rxc3 {[%clk 0:00:18.2]} 25.
Rxc3 {[%clk 0:00:15.6]} 25... Bxc3 {[%clk 0:00:10.8]} 26. Qxc3 {[%clk
0:00:11.7]} 26... Na6 {[%clk 0:00:10.3]} 27. bxa5 {[%clk 0:00:11.5]} 27... Nac5
{[%clk 0:00:10]} 28. a6 {[%clk 0:00:08.8]} 28... Nxa6 {[%clk 0:00:08.7]} 29. a5
{[%clk 0:00:09.3]} 29... Nac5 {[%clk 0:00:09.2]} 30. a6 {[%clk 0:00:09.4]} 30...
Qxa6 {[%clk 0:00:08.5]} 31. Bxa6 {[%clk 0:00:09.2]} 31... Nxe4 {[%clk
0:00:09.4]} 32. Qc7 {[%clk 0:00:08.9]} 32... Nbc5 {[%clk 0:00:10.3]} 33. Bxc5
{[%clk 0:00:08]} 1-0

[Event "*** SCC Grand Prix: Titled Tuesday Blitz"]
[Site "Chess.com"]
[Date "2020.09.29"]
[Round "8"]
[White "RamyresCoelho"]
[Black "chessmachine14"]
[Result "0-1"]
[WhiteElo "2018"]
[BlackElo "2284"]
[TimeControl "180+1"]
[EndTime "11:32:44 PDT"]
[Termination "chessmachine14 won by resignation"]

1. e4 {[%clk 0:03:00.6]} 1... c5 {[%clk 0:02:59]} 2. Nf3 {[%clk 0:02:59.3]} 2...
e6 {[%clk 0:02:59]} 3. d4 {[%clk 0:02:59.8]} 3... cxd4 {[%clk 0:02:59.6]} 4.
Nxd4 {[%clk 0:03:00.7]} 4... Nf6 {[%clk 0:02:59.8]} 5. Nc3 {[%clk 0:03:01.1]}
5... d6 {[%clk 0:03:00]} 6. Be3 {[%clk 0:02:58.9]} 6... Be7 {[%clk 0:02:59.9]}
7. f3 {[%clk 0:02:58.2]} 7... O-O {[%clk 0:02:58.3]} 8. Qd2 {[%clk 0:02:58.6]}
8... a6 {[%clk 0:02:58.6]} 9. O-O-O {[%clk 0:02:58.6]} 9... b5 {[%clk
0:02:58.7]} 10. g4 {[%clk 0:02:58.6]} 10... Nfd7 {[%clk 0:02:58.6]} 11. Bd3
{[%clk 0:02:55.9]} 11... Nb6 {[%clk 0:02:58.3]} 12. g5 {[%clk 0:02:55.1]} 12...
Bb7 {[%clk 0:02:53.1]} 13. h4 {[%clk 0:02:55.1]} 13... N8d7 {[%clk 0:02:53]} 14.
h5 {[%clk 0:02:55.1]} 14... Ne5 {[%clk 0:02:52.9]} 15. f4 {[%clk 0:02:49.4]}
15... Nec4 {[%clk 0:02:51.8]} 16. Bxc4 {[%clk 0:02:48]} 16... Nxc4 {[%clk
0:02:51.7]} 17. Qf2 {[%clk 0:02:48.1]} 17... Nxe3 {[%clk 0:02:51.1]} 18. Qxe3
{[%clk 0:02:49]} 18... e5 {[%clk 0:02:49.9]} 19. Nf5 {[%clk 0:02:35.7]} 19...
exf4 {[%clk 0:02:49.6]} 20. Nxe7+ {[%clk 0:02:35.7]} 20... Qxe7 {[%clk
0:02:49.6]} 21. Qxf4 {[%clk 0:02:36.1]} 21... Qe5 {[%clk 0:02:06.9]} 22. Qxe5
{[%clk 0:02:06.8]} 22... dxe5 {[%clk 0:02:05.8]} 23. Rd7 {[%clk 0:02:07]} 23...
Bc6 {[%clk 0:02:05.1]} 24. Rd6 {[%clk 0:02:06.7]} 24... Rac8 {[%clk 0:02:04.5]}
25. Rhd1 {[%clk 0:02:06.8]} 25... f5 {[%clk 0:01:44.8]} 26. gxf6 {[%clk
0:02:01.6]} 26... Rxf6 {[%clk 0:01:44.1]} 27. Rxf6 {[%clk 0:01:58.2]} 27... gxf6
{[%clk 0:01:43.2]} 28. Nd5 {[%clk 0:01:58.7]} 28... Kf7 {[%clk 0:01:29.7]} 29.
b3 {[%clk 0:01:47.2]} 29... Ke6 {[%clk 0:01:27.6]} 30. Rf1 {[%clk 0:01:24.2]}
30... f5 {[%clk 0:01:20.4]} 31. Nb4 {[%clk 0:00:43.9]} 31... Bxe4 {[%clk
0:01:19.3]} 32. Rf2 {[%clk 0:00:41.1]} 32... a5 {[%clk 0:01:17.2]} 33. Na6
{[%clk 0:00:39.6]} 33... Bb7 {[%clk 0:01:14.7]} 34. h6 {[%clk 0:00:13.8]} 34...
Bxa6 {[%clk 0:01:14.3]} 35. Rg2 {[%clk 0:00:14.2]} 35... f4 {[%clk 0:01:04.3]}
36. Rg7 {[%clk 0:00:13.5]} 36... f3 {[%clk 0:01:04.5]} 37. Ra7 {[%clk
0:00:10.4]} 37... f2 {[%clk 0:00:55.7]} 38. Rxa6+ {[%clk 0:00:10.4]} 38... Kf5
{[%clk 0:00:55.9]} 39. Kb2 {[%clk 0:00:08.2]} 39... f1=Q {[%clk 0:00:54.9]} 40.
Ra7 {[%clk 0:00:09.1]} 40... Qe2 {[%clk 0:00:51.6]} 41. Rf7+ {[%clk 0:00:05.8]}
41... Ke6 {[%clk 0:00:51.6]} 0-1

[Event "*** SCC Grand Prix: Titled Tuesday Blitz"]
[Site "Chess.com"]
[Date "2020.09.29"]
[Round "8"]
[White "elcandado"]
[Black "Sjakkerntobi"]
[Result "1-0"]
[WhiteElo "2574"]
[BlackElo "2428"]
[TimeControl "180+1"]
[EndTime "11:32:46 PDT"]
[Termination "elcandado won by resignation"]

1. d4 {[%clk 0:03:00.9]} 1... e6 {[%clk 0:02:59.2]} 2. Bf4 {[%clk 0:03:00.1]}
2... Nf6 {[%clk 0:02:58.9]} 3. e3 {[%clk 0:02:58.9]} 3... c5 {[%clk 0:02:59.1]}
4. c3 {[%clk 0:02:58.4]} 4... Nc6 {[%clk 0:02:58.9]} 5. Nd2 {[%clk 0:02:57.2]}
5... d5 {[%clk 0:02:59.1]} 6. Ngf3 {[%clk 0:02:54]} 6... Bd6 {[%clk 0:02:59.4]}
7. Bg3 {[%clk 0:02:53.6]} 7... O-O {[%clk 0:02:59]} 8. Bd3 {[%clk 0:02:54]} 8...
b6 {[%clk 0:02:58]} 9. e4 {[%clk 0:02:54.4]} 9... Nh5 {[%clk 0:02:51.6]} 10. e5
{[%clk 0:02:40.5]} 10... Be7 {[%clk 0:02:50.8]} 11. Ng5 {[%clk 0:02:21.8]} 11...
Bxg5 {[%clk 0:02:50.7]} 12. Qxh5 {[%clk 0:02:16.3]} 12... g6 {[%clk 0:02:50.9]}
13. Qe2 {[%clk 0:01:57]} 13... cxd4 {[%clk 0:02:49.8]} 14. h4 {[%clk 0:01:56.4]}
14... Bh6 {[%clk 0:02:42.1]} 15. h5 {[%clk 0:01:53.8]} 15... dxc3 {[%clk
0:02:41.5]} 16. bxc3 {[%clk 0:01:52.1]} 16... Bg7 {[%clk 0:02:41.2]} 17. f4
{[%clk 0:01:15.1]} 17... d4 {[%clk 0:02:22.9]} 18. Bh4 {[%clk 0:01:08.2]} 18...
Qd7 {[%clk 0:02:06]} 19. Ne4 {[%clk 0:01:07.8]} 19... dxc3 {[%clk 0:01:58.5]}
20. Nf6+ {[%clk 0:00:57.1]} 20... Bxf6 {[%clk 0:01:58.5]} 21. Bxf6 {[%clk
0:00:58]} 21... Nd4 {[%clk 0:01:59.4]} 22. Qg4 {[%clk 0:00:46.9]} 22... Nf5
{[%clk 0:01:30.5]} 23. Rh3 {[%clk 0:00:19.7]} 23... Ba6 {[%clk 0:01:16.1]} 24.
Qg5 {[%clk 0:00:18.7]} 24... Bxd3 {[%clk 0:01:13]} 25. g4 {[%clk 0:00:17]} 25...
Qd4 {[%clk 0:00:55]} 26. gxf5 {[%clk 0:00:14.9]} 26... Qe4+ {[%clk 0:00:53.5]}
27. Kf2 {[%clk 0:00:13.9]} 27... Qe2+ {[%clk 0:00:46.3]} 28. Kg1 {[%clk
0:00:13.2]} 28... Qb2 {[%clk 0:00:33.9]} 29. Qh6 {[%clk 0:00:11.4]} 29... Qxa1+
{[%clk 0:00:31.4]} 30. Kh2 {[%clk 0:00:11.5]} 30... Qxa2+ {[%clk 0:00:12.2]} 31.
Kg3 {[%clk 0:00:10.6]} 31... Be4 {[%clk 0:00:03.8]} 1-0